bitfinex-derivatives/quotes_SOLF0:USTF0_20240906
["timestamp","ask_amount","ask_price","bid_price","bid_amount"]
[1725656318895,33.34,121.4,121.28,34.7142]
[1725656319089,4.22434176,121.39,121.28,34.7142]
[1725656319291,4.1217,121.37,121.3,33.34]
[1725656319497,4.09033385,121.42,121.32,33.34]
[1725656319697,33.34,121.45,121.35,33.34]
[1725656320000,33.34,121.45,121.32,33.34]
[1725656320397,33.34,121.43,121.32,33.34]
[1725656320593,37.38126634,121.43,121.3,33.34]
[1725656320900,4.1213,121.38,121.33,4.1228]
[1725656321103,1.0,121.42,121.32,33.34]
[1725656321503,4.1207,121.4,121.35,4.1219]
[1725656321699,4.1207,121.4,121.35,33.34]
[1725656321892,1.0,121.42,121.35,33.34]
[1725656322092,1.0,121.42,121.36,4.1216]
[1725656322303,4.21800296,121.44,121.35,33.34]
[1725656322595,33.34,121.47,121.35,33.34]
[1725656323101,108.01468214,121.49,121.32,33.34]
[1725656323102,4.1206,121.4,121.32,33.34]
[1725656323498,37.41249773,121.43,121.32,33.34]
[1725656323701,33.34,121.43,121.3,33.34]
[1725656323901,33.34,121.41,121.3,33.34]
[1725656324903,4.1224,121.35,121.3,33.34]
[1725656325102,1.0,121.42,121.34,33.34]
[1725656326001,33.34,121.46,121.34,33.34]
[1725656326300,33.34,121.46,121.36,33.34]
[1725656326897,33.34,121.44,121.32,33.34]
[1725656327106,33.34,121.4,121.3,33.34]
[1725656327500,4.1242,121.29,121.28,1.3742]
[1725656327899,4.1263,121.23,121.21,1.3831]
[1725656328205,8.2416,121.39,121.21,1.3831]
[1725656328206,33.34,121.29,121.21,1.3831]
[1725656328602,4.1265,121.22,121.21,1.3831]
[1725656328800,33.34,121.29,121.21,1.3831]
[1725656329012,4.05434821,121.32,121.21,1.3831]
[1725656329198,41.5863,121.33,121.21,1.3831]
[1725656329807,4.1261,121.24,121.22,33.34]
[1725656330002,45.71081406,121.33,121.22,33.34]
[1725656330203,37.46451406,121.33,121.22,33.34]
[1725656330707,4.1262,121.23,121.2,33.34]
[1725656331003,33.34,121.31,121.2,33.34]
[1725656331503,33.34,121.35,121.23,33.34]
[1725656331706,33.34,121.37,121.25,33.34]
[1725656332614,33.34,121.35,121.25,33.34]
[1725656332905,33.34,121.35,121.23,33.34]
[1725656333122,66.3816,121.39,121.16,1.3984]
[1725656333123,33.34,121.31,121.21,33.34]
[1725656333411,2.3548,121.34,121.23,33.34]
[1725656333906,33.34,121.31,121.21,33.34]
[1725656334504,4.1247,121.28,121.23,37.4662]
[1725656334703,2.3548,121.34,121.23,33.34]
[1725656334899,6.52678185,121.34,121.23,33.34]
[1725656335104,33.34,121.33,121.21,33.34]
[1725656335311,37.56809237,121.33,121.21,33.34]
[1725656336004,33.34,121.31,121.19,33.34]
[1725656336408,33.34,121.29,121.19,33.34]
[1725656336610,33.34,121.29,121.17,34.7281]
[1725656336804,33.34,121.29,121.19,33.34]
[1725656337108,4.05687278,121.31,121.21,33.34]
[1725656337309,1.0,121.32,121.21,37.51239443]
[1725656337601,1.0,121.32,121.23,33.34]
[1725656337802,1.0,121.32,121.25,33.34]
[1725656338009,5.55813773,121.34,121.25,33.34]
[1725656338203,33.34,121.33,121.2,33.34]
[1725656338408,4.1261,121.24,121.2,33.34]
[1725656339111,4.1256,121.25,121.2,37.4672]
[1725656339316,4.11249731,121.33,121.24,33.34]
[1725656339512,1.3548,121.34,121.24,33.34]
[1725656339817,4.17645207,121.33,121.24,33.34]
[1725656340112,1.3548,121.34,121.26,33.34]
[1725656340409,33.34,121.39,121.28,33.34]
[1725656340803,1.0,121.38,121.26,33.34]
[1725656341210,1.0,121.38,121.27,4.1248]
[1725656341412,1.0,121.38,121.28,33.34]
[1725656341810,1.3863,121.4,121.32,33.34]
[1725656342015,1.3863,121.4,121.26,33.34]
[1725656342016,1.3863,121.4,121.29,33.34]
[1725656342216,1.3863,121.4,121.32,33.34]
[1725656342511,33.34,121.43,121.32,33.34]
[1725656342714,33.34,121.43,121.34,4.1224]
[1725656343016,1.4008,121.45,121.36,33.34]
[1725656343206,4.1195,121.43,121.38,33.34]
[1725656343518,114.2939166,121.47,121.36,33.34]
[1725656343713,33.34,121.46,121.34,33.34]
[1725656344015,33.34,121.43,121.32,33.34]
[1725656344206,114.2939166,121.47,121.34,33.34]
[1725656344207,34.34,121.46,121.34,33.34]
[1725656344714,33.34,121.41,121.3,33.34]
[1725656344908,33.34,121.39,121.27,36.2223]
[1725656345112,37.53705463,121.39,121.27,36.2223]
[1725656345412,33.34,121.37,121.27,2.8823]
[1725656345608,33.34,121.32,121.2,33.34]
[1725656345811,33.34,121.3,121.2,33.34]
[1725656346013,33.34,121.27,121.14,8.18328345]
[1725656346408,1.3739,121.29,121.14,8.18328345]
[1725656346617,1.3739,121.29,121.19,33.34]
[1725656347515,4.1249,121.27,121.19,33.34]
[1725656347818,33.34,121.33,121.21,33.34]
[1725656348214,4.1253,121.26,121.21,33.34]
[1725656349112,4.1249,121.27,121.21,37.4668]
[1725656349309,1.0,121.32,121.23,33.34]
[1725656350317,4.1244,121.29,121.23,37.4661]
[1725656350913,4.1244,121.29,121.24,4.1257]
[1725656351220,1.4295,121.35,121.25,33.34]
[1725656351413,4.08088289,121.34,121.25,33.34]
[1725656351916,33.34,121.32,121.21,33.34]
[1725656352315,33.34,121.3,121.19,33.34]
[1725656352716,4.03303265,121.31,121.21,33.34]
[1725656352914,4.1254,121.26,121.21,33.34]
[1725656353115,4.02478261,121.32,121.23,33.34]
[1725656353413,33.34,121.34,121.21,33.34]
[1725656353611,33.34,121.32,121.21,33.34]
[1725656353817,4.1259,121.24,121.21,33.34]
[1725656354121,33.34,121.3,121.18,33.34]
[1725656354317,33.34,121.32,121.2,33.34]
[1725656354514,1.0,121.33,121.23,37.466]
[1725656354714,1.0,121.33,121.23,33.34]
[1725656355516,33.34,121.3,121.18,33.34]
[1725656355916,4.1261,121.24,121.18,33.34]
[1725656356120,33.34,121.3,121.18,33.34]
[1725656356320,33.34,121.3,121.18,37.4678]
[1725656356521,4.1258,121.25,121.18,33.34]
[1725656356820,34.34,121.33,121.18,33.34]
[1725656357021,4.1251,121.27,121.21,33.34]
[1725656357218,1.0,121.33,121.23,33.34]
[1725656357517,4.1247,121.28,121.24,4.1258]
[1725656357919,1.0,121.33,121.25,33.34]
[1725656358128,4.1239,121.3,121.25,33.34]
[1725656358322,1.0,121.33,121.25,33.34]
[1725656358614,4.1233,121.32,121.25,33.34]
[1725656359022,5.56937069,121.35,121.27,4.1248]
[1725656359222,4.1231,121.32,121.25,33.34]
[1725656359424,5.56937069,121.35,121.26,4.125]
[1725656359622,5.56937069,121.35,121.25,33.34]
[1725656359818,4.1231,121.32,121.25,33.34]
[1725656360024,33.34,121.39,121.27,33.34]
[1725656360226,33.34,121.39,121.29,33.34]
[1725656360524,33.34,121.39,121.32,4.1229]
[1725656360724,4.122,121.36,121.29,33.34]
[1725656360921,33.34,121.39,121.29,33.34]
[1725656361117,104.39660733,121.42,121.29,33.34]
[1725656361118,137.73660733,121.42,121.29,33.34]
[1725656361525,4.1219,121.36,121.29,33.34]
[1725656361821,137.73660733,121.42,121.29,33.34]
[1725656362026,58.14,121.4,121.28,4.1244]
[1725656362320,33.34,121.4,121.28,4.09231718]
[1725656362524,137.73660733,121.42,121.32,4.1229]
[1725656362726,137.73660733,121.42,121.3,33.34]
[1725656362917,4.121,121.39,121.3,33.34]
[1725656363130,137.73660733,121.42,121.3,33.34]
[1725656363318,137.73660733,121.42,121.26,2.7132]
[1725656363319,162.53660733,121.42,121.26,2.7132]
[1725656363519,33.34,121.38,121.27,33.34]
[1725656363727,33.34,121.4,121.29,33.34]
[1725656363922,4.1211,121.38,121.31,33.34]
[1725656364228,1.0,121.41,121.26,2.7132]
[1725656364229,33.34,121.39,121.26,2.7132]
[1725656364429,4.1243,121.29,121.26,2.7132]
[1725656364627,37.53754018,121.32,121.26,2.7132]
[1725656364827,33.34,121.32,121.26,2.7132]
[1725656365025,4.1245,121.29,121.26,2.7132]
[1725656365230,4.15177132,121.36,121.26,2.7132]
[1725656365426,4.15177132,121.36,121.27,4.1246]
[1725656365732,33.34,121.35,121.26,2.7132]
[1725656365926,34.34,121.35,121.26,2.7132]
[1725656366123,1.0,121.35,121.26,2.7132]
[1725656366326,1.0,121.35,121.27,33.34]
[1725656366530,33.34,121.39,121.27,33.34]
[1725656366726,33.34,121.41,121.29,33.34]
[1725656367230,4.1222,121.35,121.3,4.1237]
[1725656367528,104.39660733,121.42,121.31,33.34]
[1725656367830,4.1211,121.38,121.31,33.34]
[1725656368030,104.39660733,121.42,121.31,33.34]
[1725656368228,33.34,121.43,121.31,33.34]
[1725656368429,4.1198,121.42,121.31,33.34]
[1725656368729,33.34,121.43,121.29,4.10248136]
[1725656368730,33.34,121.48,121.36,33.34]
[1725656368926,33.34,121.48,121.38,4.1209]
[1725656369127,33.34,121.48,121.36,33.34]
[1725656369429,4.1201,121.41,121.36,4.1215]
[1725656369627,4.06165039,121.42,121.33,33.34]
[1725656369825,33.34,121.44,121.33,33.34]
[1725656370027,33.34,121.44,121.31,33.34]
[1725656370223,33.34,121.41,121.29,33.34]
[1725656370427,33.34,121.39,121.27,34.8145]
[1725656371031,33.34,121.41,121.29,33.34]
[1725656371239,33.34,121.39,121.27,34.8145]
[1725656371436,33.34,121.37,121.27,33.34]
[1725656371634,33.34,121.37,121.26,2.7132]
[1725656371840,33.34,121.35,121.26,2.7132]
[1725656372244,33.34,121.33,121.26,2.7132]
[1725656372434,37.44394081,121.33,121.26,2.7132]
[1725656372643,33.34,121.33,121.26,2.7132]
[1725656372846,1.0,121.36,121.26,2.7132]
[1725656372847,33.34,121.35,121.26,2.7132]
[1725656373342,1.0,121.36,121.26,2.7132]
[1725656373543,1.0,121.36,121.27,33.34]
[1725656374043,33.34,121.39,121.29,33.34]
[1725656374249,4.16688993,121.38,121.29,33.34]
[1725656374442,33.34,121.37,121.27,33.34]
[1725656375040,4.1234,121.32,121.27,37.4648]
[1725656375241,4.1234,121.32,121.26,2.7132]
[1725656375439,33.34,121.33,121.26,2.7132]
[1725656375644,4.1243,121.29,121.26,2.7132]
[1725656376040,4.22710033,121.31,121.22,33.34]
[1725656376237,33.34,121.31,121.19,33.34]
[1725656376442,33.34,121.31,121.17,33.34]
[1725656376443,33.34,121.29,121.17,33.34]
[1725656376737,4.22421353,121.31,121.16,4.03615912]
[1725656376941,4.22421353,121.31,121.2,33.34]
[1725656376942,33.34,121.31,121.2,33.34]
[1725656377238,33.34,121.31,121.22,33.34]
[1725656377446,33.34,121.34,121.22,33.34]
[1725656377835,33.34,121.34,121.2,4.08800643]
[1725656378034,33.34,121.34,121.21,33.34]
[1725656378434,33.34,121.36,121.23,33.34]
[1725656378644,33.34,121.36,121.24,2.8414]
[1725656379033,33.34,121.34,121.24,2.8414]
[1725656379234,33.34,121.36,121.24,36.1814]
[1725656379438,33.34,121.38,121.26,33.34]
[1725656379847,33.34,121.36,121.25,33.34]
[1725656380043,4.1244,121.29,121.24,6.9671]
[1725656380346,4.1244,121.29,121.24,2.8414]
[1725656380542,33.34,121.29,121.08,8.29524303]
[1725656380739,33.34,121.29,121.16,34.7694]
[1725656380942,33.34,121.27,121.16,34.7694]
[1725656381147,4.15183325,121.26,121.18,4.1279]
[1725656381351,1.0,121.28,121.16,1.4294]
[1725656381643,4.11099554,121.31,121.23,4.1259]
[1725656381836,33.34,121.34,121.23,4.1259]
[1725656382141,33.34,121.34,121.22,33.34]
[1725656382339,33.34,121.31,121.2,33.34]
[1725656382739,33.34,121.31,121.22,4.1263]
[1725656383143,33.34,121.36,121.24,33.34]
[1725656383341,33.34,121.36,121.25,1.3578]
[1725656383544,4.16586219,121.36,121.25,2.7477]
[1725656383850,1.4498,121.37,121.25,2.7477]
[1725656384150,33.34,121.35,121.26,4.1251]
[1725656384649,1.0,121.36,121.26,4.1251]
[1725656384840,33.34,121.35,121.25,6.8732]
[1725656385043,33.34,121.33,121.25,2.7477]
[1725656385442,33.34,121.35,121.25,2.7477]
[1725656385747,1.0,121.36,121.26,33.34]
[1725656386048,4.1225,121.34,121.28,33.34]
[1725656386548,1.4498,121.37,121.28,33.34]
[1725656387249,4.07821914,121.38,121.28,33.34]
[1725656387448,33.34,121.39,121.28,33.34]
[1725656387648,4.122,121.36,121.28,37.40997031]
[1725656387842,33.34,121.39,121.28,37.40997031]
[1725656388143,4.1217,121.37,121.32,4.1229]
[1725656388448,33.34,121.39,121.28,37.40997031]
[1725656388653,33.34,121.41,121.28,4.06997031]
[1725656388841,33.34,121.41,121.26,1.4868]
[1725656389048,33.34,121.41,121.29,33.34]
[1725656389345,4.1212,121.38,121.33,4.1226]
[1725656389549,33.34,121.41,121.29,37.53040316]
[1725656389851,4.1208,121.39,121.32,33.34]
[1725656390149,33.34,121.41,121.29,37.53040316]
[1725656390352,33.34,121.39,121.29,33.34]
[1725656390545,33.34,121.39,121.29,37.3913901]
[1725656390740,33.34,121.41,121.29,37.3913901]
[1725656390940,1.4833,121.42,121.29,37.3913901]
[1725656391139,4.1212,121.38,121.33,4.1226]
[1725656391351,33.34,121.41,121.31,33.34]
[1725656391655,4.1214,121.38,121.33,4.1225]
[1725656392044,4.1214,121.38,121.31,33.34]
[1725656392045,33.34,121.41,121.31,37.46683575]
[1725656392250,33.34,121.41,121.32,4.1231]
[1725656392544,33.34,121.41,121.3,4.15775609]
[1725656392749,33.34,121.41,121.29,33.34]
[1725656392948,4.1212,121.38,121.33,4.1225]
[1725656393347,4.1217,121.37,121.32,4.123]
[1725656393543,33.34,121.39,121.29,37.47782455]
[1725656393739,33.34,121.39,121.29,4.13782455]
[1725656393940,33.34,121.39,121.27,33.34]
[1725656394148,33.34,121.37,121.26,1.4868]
[1725656394341,4.1231,121.32,121.26,4.1249]
[1725656394542,33.34,121.35,121.26,4.1249]
[1725656394745,33.34,121.35,121.25,2.7477]
[1725656394950,4.1231,121.32,121.27,4.1248]
[1725656395255,33.34,121.37,121.28,4.19060398]
[1725656395450,4.1217,121.37,121.27,33.34]
[1725656395842,33.34,121.39,121.27,33.34]
[1725656396047,1.4833,121.42,121.3,33.34]
[1725656396048,33.34,121.41,121.3,33.34]
[1725656396553,4.1225,121.34,121.29,4.1239]
[1725656396755,4.14936762,121.38,121.27,33.34]
[1725656397053,33.34,121.32,121.25,2.7477]
[1725656397242,33.34,121.32,121.21,37.54917103]
[1725656397443,4.1252,121.26,121.21,4.1267]
[1725656397743,30.36007111,121.38,121.21,4.03639795]
[1725656397744,33.34,121.32,121.21,4.03639795]
[1725656397943,33.34,121.32,121.22,33.34]
[1725656398341,33.34,121.34,121.22,33.34]
[1725656398542,4.1236,121.31,121.24,33.34]
[1725656398747,33.34,121.36,121.26,33.34]
[1725656399042,33.34,121.36,121.27,2.9495]
[1725656399243,33.34,121.34,121.27,1.4427]
[1725656399446,33.34,121.34,121.22,33.34]
[1725656399644,4.18724123,121.34,121.23,4.04780404]
[1725656399848,4.18724123,121.34,121.22,33.34]
[1725656399849,1.487,121.33,121.22,33.34]
[1725656400243,1.487,121.33,121.21,5.52330461]
[1725656400244,1.487,121.33,121.26,33.34]
[1725656400448,1.487,121.33,121.24,33.34]
[1725656400655,1.487,121.33,121.21,1.4689]
[1725656400656,4.1265,121.22,121.21,1.4689]
[1725656400852,4.0370781,121.25,121.16,1.416]
[1725656401058,33.34,121.28,121.16,1.416]
[1725656401261,33.34,121.32,121.2,33.34]
[1725656401554,1.487,121.33,121.16,1.416]
[1725656401555,33.34,121.3,121.21,4.07090606]
[1725656401755,34.827,121.33,121.22,4.17486515]
[1725656402060,33.34,121.38,121.28,33.34]
[1725656402363,33.34,121.38,121.27,33.34]
[1725656402364,4.14598762,121.38,121.27,33.34]
[1725656402550,33.34,121.34,121.23,34.8089]
[1725656402750,4.1238,121.31,121.23,39.00356688]
[1725656403052,33.34,121.39,121.28,33.34]
[1725656403258,33.34,121.41,121.31,4.1233]
[1725656403456,33.34,121.41,121.3,33.34]
[1725656403661,33.34,121.37,121.23,5.66356688]
[1725656403853,4.1221331,121.37,121.23,34.8089]
[1725656404055,33.34,121.3,121.18,34.7792]
[1725656404258,4.1268,121.22,121.18,1.4392]
[1725656404452,4.1268,121.22,121.15,34.9123]
[1725656404453,58.14,121.28,121.15,34.9123]
[1725656404758,33.34,121.23,121.11,4.06850783]
[1725656404961,4.1278,121.19,121.08,4.544]
[1725656405155,33.34,121.27,121.14,33.34]
[1725656405363,34.34,121.27,121.14,33.34]
[1725656405565,34.34,121.27,121.12,33.34]
[1725656405766,34.34,121.27,121.08,8.63107042]
[1725656405767,34.34,121.27,121.14,33.34]
[1725656405964,1.0,121.27,121.17,33.34]
[1725656406265,34.34,121.27,121.14,33.34]
[1725656406567,4.1268,121.22,121.16,4.1283]
[1725656406759,34.34,121.27,121.15,4.05798498]
[1725656406954,1.0,121.27,121.14,33.34]
[1725656407160,1.0,121.27,121.18,33.34]
[1725656407355,1.0,121.27,121.17,33.34]
[1725656407570,34.34,121.27,121.15,33.34]
[1725656407764,34.34,121.27,121.16,4.1285]
[1725656407966,34.34,121.27,121.15,33.34]
[1725656408158,4.1271,121.21,121.16,4.1285]
[1725656408359,4.18759613,121.21,121.13,33.34]
[1725656408562,33.34,121.23,121.13,33.34]
[1725656408958,37.4475179,121.23,121.13,33.34]
[1725656409263,37.4475179,121.23,121.08,8.63107042]
[1725656409466,1.0,121.22,121.13,37.4693]
[1725656409663,1.0,121.22,121.13,33.34]
[1725656409963,1.0,121.22,121.15,33.34]
[1725656410161,1.0,121.22,121.08,8.63107042]
[1725656410362,1.0,121.22,121.01,8.267]
[1725656410576,33.34,121.2,121.08,33.34]
[1725656410870,1.5395,121.21,121.11,33.34]
[1725656411070,1.5395,121.21,121.13,33.34]
[1725656411257,1.5395,121.21,121.11,33.34]
[1725656411463,34.8795,121.21,121.08,33.34]
[1725656411666,1.0,121.2,121.08,33.34]
[1725656411865,2.5405,121.2,121.08,33.34]
[1725656412462,1.0,121.2,121.08,33.34]
[1725656412666,1.0,121.2,121.13,33.34]
[1725656413065,1.0,121.2,121.16,4.1283]
[1725656413258,5.70446429,121.21,121.13,33.34]
[1725656413768,4.1284,121.17,121.11,33.34]
[1725656413965,5.70446429,121.21,121.11,33.34]
[1725656414166,1.0,121.2,121.11,33.34]
[1725656414469,34.34,121.2,121.02,4.6048]
[1725656414660,34.34,121.2,121.07,33.34]
[1725656415065,34.34,121.2,121.1,33.34]
[1725656415573,33.34,121.18,121.06,33.34]
[1725656416287,33.34,121.12,120.93,8.2725]
[1725656416576,33.34,121.08,120.95,1.4797]
[1725656416780,33.34,121.04,120.94,1.4177]
[1725656416981,27.7585,121.11,120.9,4.1374]
[1725656416982,4.1357,120.96,120.9,4.1374]
[1725656417171,1.4868,121.03,120.84,1.4797]
[1725656417476,4.138,120.89,120.83,33.34]
[1725656417675,24.8,121.01,120.83,33.34]
[1725656417871,33.34,120.96,120.78,2.973]
[1725656418070,4.1392,120.85,120.69,1.488]
[1725656418270,1.5111,120.84,120.7,4.1852036]
[1725656418478,1.5111,120.84,120.65,33.34]
[1725656418670,4.13769141,120.98,120.66,1.52187357]
[1725656418985,1.5111,120.95,120.66,3.02037357]
[1725656419185,5.60608696,120.95,120.67,1.52187357]
[1725656419380,1.4995,120.94,120.67,1.52187357]
[1725656420085,2.4995,120.94,120.78,4.1415]
[1725656420279,2.4995,120.94,120.66,1.52219516]
[1725656420479,2.4995,120.94,120.65,4.18561675]
[1725656420677,33.34,120.81,120.63,1.5553]
[1725656420877,33.34,120.79,120.67,1.52198437]
[1725656421078,1.5076,120.8,120.67,4.17033704]
[1725656421281,1.5076,120.8,120.73,33.34]
[1725656421486,1.5076,120.8,120.65,4.12520979]
[1725656421683,37.48,120.83,120.76,4.1422]
[1725656421885,33.34,120.85,120.73,33.34]
[1725656422587,33.34,120.83,120.72,1.4986]
[1725656422789,33.34,120.83,120.76,4.1422]
[1725656423090,33.34,120.83,120.72,1.4986]
[1725656423391,1.0,120.82,120.7,33.34]
[1725656423593,33.34,120.85,120.72,33.34]
[1725656423885,116.72381264,120.89,120.72,33.34]
[1725656423886,150.06381264,120.89,120.77,33.34]
[1725656424084,1.5076,120.89,120.79,33.34]
[1725656424279,1.5076,120.89,120.79,4.1412]
[1725656424280,4.1385,120.88,120.79,4.1412]
[1725656424481,33.34,120.92,120.8,33.34]
[1725656424688,1.5202,120.95,120.84,33.34]
[1725656424886,1.5202,120.95,120.89,4.1376]
[1725656425081,1.5202,120.95,120.78,1.5026]
[1725656425082,33.34,120.92,120.79,33.34]
[1725656425483,33.34,120.92,120.81,33.34]
[1725656425687,1.5202,120.95,120.84,33.34]
[1725656426084,1.5202,120.95,120.86,33.34]
[1725656426284,1.5202,120.95,120.82,4.15929648]
[1725656426483,1.5202,120.95,120.83,33.34]
[1725656426484,33.34,120.94,120.83,33.34]
[1725656426685,1.5202,120.95,120.83,33.34]
[1725656426882,33.34,120.98,120.85,33.34]
[1725656427083,33.34,120.98,120.87,33.34]
[1725656427285,33.34,120.96,120.89,4.1375]
[1725656427590,33.34,120.96,120.86,4.14108481]
[1725656427785,33.34,120.96,120.85,1.4579]
[1725656427993,28.554,120.96,120.95,4.1357]
[1725656428191,28.554,120.96,120.85,5.67017587]
[1725656428192,33.34,121.08,120.86,1.5658]
[1725656428490,33.34,121.08,120.87,1.51925691]
[1725656428697,33.34,121.08,120.88,1.51929947]
[1725656428698,37.47611799,121.08,120.88,1.51929947]
[1725656428891,4.1348,120.98,120.88,3.06549947]
[1725656429091,4.14786891,120.98,120.78,4.03802333]
[1725656429289,1.6297,120.97,120.81,1.5462]
[1725656429486,4.1368,120.93,120.81,1.5462]
[1725656429887,33.34,120.93,120.81,34.8862]
[1725656430095,33.34,120.93,120.84,4.1394]
[1725656430384,33.34,120.96,120.68,1.5658]
[1725656430590,33.34,120.9,120.78,33.34]
[1725656430790,33.34,120.9,120.81,4.1402]
[1725656430791,4.1388,120.86,120.81,4.1402]
[1725656430997,8.2605,121.12,120.85,33.34]
[1725656431185,33.34,121.21,120.95,33.34]
[1725656431386,33.34,121.18,120.86,1.6189]
[1725656431589,1.5392,121.26,121.05,33.34]
[1725656431590,33.34,121.2,121.05,33.34]
[1725656431793,33.34,121.2,120.95,33.34]
[1725656432098,33.34,121.2,121.08,33.34]
[1725656432597,33.34,121.2,121.1,4.1305]
[1725656432915,33.34,121.16,121.03,33.34]
[1725656433194,33.34,121.18,121.05,33.34]
[1725656433598,4.129,121.15,121.08,4.1313]
[1725656433798,33.34,121.16,121.05,33.34]
[1725656433992,33.34,121.16,121.03,33.34]
[1725656434194,33.34,121.14,121.01,33.34]
[1725656434402,58.14,121.2,121.03,33.34]
[1725656434403,33.34,121.16,121.03,33.34]
[1725656434797,4.1299,121.13,121.05,4.1323]
[1725656434992,4.1299,121.13,121.03,33.34]
[1725656435298,33.34,121.16,121.05,37.472]
[1725656435299,4.13,121.12,121.05,37.472]
[1725656435499,33.34,121.16,121.05,33.34]
[1725656435700,33.34,121.16,121.03,33.34]
[1725656436093,33.34,121.13,121.03,33.34]
[1725656436700,33.34,121.15,121.05,33.34]
[1725656437000,27.70310773,121.62,121.12,33.34]
[1725656437199,33.34,121.18,121.06,33.34]
[1725656437502,33.34,121.16,121.05,33.34]
[1725656437802,33.34,121.16,121.03,33.34]
[1725656438400,33.34,121.14,120.96,1.5977]
[1725656438595,33.34,121.12,120.96,1.5977]
[1725656438807,4.1313,121.08,121.01,4.1335]
[1725656439005,33.34,121.12,120.99,33.34]
[1725656440099,33.34,121.12,121.01,33.34]
[1725656440303,4.1308,121.1,121.01,33.34]
[1725656440495,33.34,121.11,120.99,33.34]
[1725656440695,33.34,121.11,121.0,33.34]
[1725656440902,34.9549,121.13,121.03,4.133]
[1725656441103,34.9549,121.13,121.0,33.34]
[1725656441904,34.9549,121.13,121.02,4.1332]
[1725656442103,33.34,121.11,121.0,33.34]
[1725656442307,34.9549,121.13,121.0,33.34]
[1725656442612,33.34,121.08,120.98,4.11102908]
[1725656442815,1.6149,121.13,120.99,33.34]
[1725656443016,33.34,121.1,120.99,33.34]
[1725656443306,1.6149,121.13,120.96,1.5977]
[1725656443507,33.34,121.08,120.96,1.5977]
[1725656443803,33.34,121.1,121.0,33.34]
[1725656444004,1.6149,121.13,120.98,4.02961847]
[1725656444201,33.34,121.11,121.0,33.34]
[1725656444401,1.6149,121.13,120.98,33.34]
[1725656444607,33.34,121.09,121.0,33.34]
[1725656444801,1.6149,121.13,121.0,33.34]
[1725656445011,381.37223053,121.46,120.95,33.34]
[1725656445209,381.37223053,121.46,120.92,1.5107]
[1725656445210,1.5654,121.23,121.11,33.34]
[1725656445505,1.5654,121.23,121.05,4.04118952]
[1725656445711,1.5654,121.23,120.92,5.62048932]
[1725656445902,33.34,121.16,121.06,33.34]
[1725656446102,33.34,121.2,121.01,33.34]
[1725656446103,33.34,121.2,121.12,4.1299]